Cogmind - Beta 9.1 @@@ ROGUE MODE // 2019.11.01 @ 15:49:26 Player: MrPainting Result: Destroyed by S-10 Pest with Light Assault Rifle Performance ------------- Evolutions (0) 0 Regions Visited (1) 200 Robots Destroyed (22) 110 Value Destroyed (427) 427 Prototype IDs (0) 0 Alien Tech Used (0) 0 Bonus (0) 0 TOTAL SCORE: 737 Bonus ------- None Cogmind --------- Core Integrity 0/250 Matter 199/300 Energy 265/265 System Corruption 0% Temperature Cool (202) Location -10/Materials Parts ------- Power (1) Improved Ion Engine Propulsion (2) Light Treads Light Treads Utility (2) High-capacity Storage Unit Light Armor Plating Weapon (2) Improved Light Cannon Improved Light Cannon Inventory (12) Improved Ion Engine Hover Unit Large Storage Unit High-capacity Matter Pod (144) Structural Scanner Propulsion Shielding Utility Shielding Weapon Shielding Light Assault Rifle Improved Light Cannon Improved Light Cannon Peak State ------------ Power Improved Ion Engine Propulsion Light Treads Light Treads Utility High-capacity Storage Unit Weapon Shielding Weapon Improved Light Cannon Improved Light Cannon Inventory Improved Ion Engine Hover Unit Large Storage Unit High-capacity Matter Pod Structural Scanner Propulsion Shielding Utility Shielding Light Armor Plating Light Assault Rifle Improved Light Cannon Improved Light Cannon [Rating: 11] Favorites ----------- Power Light Ion Engine Engine Light Ion Engine Propulsion Aluminum Leg Treads Light Treads Leg Aluminum Leg Hover Unit Hover Unit Utility Utility Shielding Device Heat Sink Storage Medium Storage Unit Processor Signal Interpreter Protection Utility Shielding Weapon Light Assault Rifle Energy Gun Small Laser Ballistic Gun Light Assault Rifle Ballistic Cannon Improved Light Cannon Build | -11 -10 ------- Run | Scr Mat Slots Evolved . | . . Power . | . . Propulsion . | . . Utility . | . . Weapon . | . . Parts Attached 41 | 2 39 Power 5 | . 5 Engine 5 | . 5 Core . | . . Reactor . | . . Propulsion 13 | . 13 Treads 6 | . 6 Leg 2 | . 2 Wheel . | . . Hover 5 | . 5 Flight . | . . Utility 11 | . 11 Device 2 | . 2 Storage 5 | . 5 Processor 1 | . 1 Hackware . | . . Protection 3 | . 3 Artifact . | . . Weapon 12 | 2 10 Energy Gun 1 | 1 . Energy Cannon . | . . Ballistic Gun 9 | 1 8 Ballistic Cannon 2 | . 2 Launcher . | . . Special Weapon . | . . Impact Weapon . | . . Slashing Weapon . | . . Piercing Weapon . | . . Special Melee Weapon . | . . Unidentified Prototypes . | . . Parts Lost 5 | . 5 Power 1 | . 1 Propulsion 2 | . 2 Utility . | . . Weapon 2 | . 2 Highest Loss Streak 4 | . 4 Average Slot Usage (%) 90 | . 90 Engine 12 | . 12 Treads 9 | . 9 Leg 9 | . 9 Hover 6 | . 6 Device 1 | . 1 Storage 10 | . 10 Processor 2 | . 2 Protection 9 | . 9 Energy Gun 1 | . 1 Ballistic Gun 21 | . 21 Ballistic Cannon 2 | . 2 Naked Turns . | . . Heaviest Build 50 | 2 50 Greatest Support 40 | 3 40 Greatest Overweight (x) 1 | . 1 Average Overweight (x) . | . . Largest Inventory Capacity 12 | 4 12 Average Capacity 6 | 4 6 Most Carried 12 | 4 12 Average Carried 6 | 2 6 Final Capacity 12 | 4 12 Final Carried 11 | 4 11 Class Distribution -------------------- 78% | Mutant 21% | Scavenger-Mutant Dominant Class ---------------- Mutant | -10/Materials Resources | -11 -10 ----------- Run | Scr Mat Matter Collected 956 | 220 736 Remotely . | . . Salvage Created 651 | . 651 Parts 43 | . 43 Haulers Intercepted 2 | . 2 Recyclers Shooed . | . . Parts Field Recycled . | . . Retrieved Matter . | . . Parts Self-Destructed . | . . Prevented . | . . Kills | -11 -10 ------- Run | Scr Mat Combat Hostiles Destroyed 14 | . 14 Guns 7 | . 7 Cannons 7 | . 7 Classes Destroyed 7 | . 7 Worker 3 | . 3 Hauler 2 | . 2 Recycler 1 | . 1 Operator 1 | . 1 Watcher 1 | . 1 Swarmer 5 | . 5 Grunt 9 | . 9 Best Kill Streak 5 | . 5 Combat Bots Only 5 | . 5 Max Kills in Single Turn 1 | . 1 Gunslinging . | . . Exploded . | . . Melee . | . . Uniques/NPCs Destroyed . | . . Combat | -11 -10 -------- Run | Scr Mat Damage Taken 1339 | . 1339 Core 251 | . 251 Absorbed by Shields . | . . Core Remaining (%) 100 | 100 . Volleys Fired 88 | . 88 Largest 2 | . 2 Hottest 78 | . 78 Shots Fired 169 | . 169 Gun 139 | . 139 Cannon 30 | . 30 Launcher . | . . Special . | . . Kinetic 156 | . 156 Thermal 13 | . 13 Explosive . | . . Electromagnetic . | . . Robot Hit Streak 9 | . 9 Robot Miss Streak 5 | . 5 Penetration Max . | . . Secondary Targets 1 | . 1 Max Gunslinging Chain 1 | . 1 Shots Hit Robots 85 | . 85 Core Hits 38 | . 38 Critical Hits . | . . Critical Kills . | . . Critical Parts Destroyed . | . . Melee Attacks . | . . Impact . | . . Slashing . | . . Piercing . | . . Sneak Attacks . | . . Combat Hostiles . | . . Follow-up Attacks . | . . Damage Inflicted 979 | . 979 Guns 695 | . 695 Cannons 284 | . 284 Explosions . | . . Melee . | . . Ramming . | . . Kinetic 933 | . 933 Thermal 46 | . 46 Explosive . | . . Electromagnetic . | . . Impact . | . . Slashing . | . . Piercing . | . . Highest Corruption . | . . Average Corruption . | . . Corruption Purged . | . . Overload Shots . | . . Overflow Damage 3 | . 3 Projectiles 3 | . 3 Explosions . | . . Melee . | . . Knockbacks 3 | . 3 Impact . | . . Kinetic 2 | . 2 Secondary 1 | . 1 Self-Inflicted Damage . | . . Shots . | . . Rammed . | . . Targets Rammed . | . . Kicked . | . . Crushed . | . . Highest Temperature 202 | . 202 Average Temperature 27 | . 27 Received Heat Transfer 528 | . 528 Siege Activations . | . . Robots Corrupted . | . . Combat Hostiles . | . . Parts Fried . | . . Impact Corruptions . | . . Robots Melted . | . . Combat Hostiles . | . . Parts Melted . | . . Heat Transferred 100 | . 100 Parts Sabotaged . | . . Parts Stolen . | . . Parts Stripped . | . . Power Chain Reactions . | . . Missiles Intercepted . | . . Alert | -11 -10 ------- Run | Scr Mat Peak Influence 195 | . 195 Average Influence 61 | . 63 Maximum Alert Level . | . . Low Security (%) 100 | . . Level 1 . | . . Level 2 . | . . Level 3 . | . . Level 4 . | . . Level 5 . | . . High Security . | . . Max Security . | . . Squads Dispatched 2 | . 2 Investigation 1 | . 1 Extermination . | . . Reinforcement 1 | . 1 Assault . | . . Garrison . | . . Intercept . | . . Construction Impeded . | . . Haulers Reinforced . | . . Stealth | -11 -10 --------- Run | Scr Mat Distress Signals 2 | . 2 Communications Jammed . | . . Distress Signals . | . . Times Spotted 27 | . 27 Peak Tracking Total 5 | . 5 Tactical Retreats . | . . Traps | -11 -10 ------- Run | Scr Mat Traps Triggered 2 | . 2 Indirectly . | . . Trap Hack Attempts . | . . Triggered . | . . Disarmed . | . . Reprogrammed . | . . Reused . | . . Traps Extracted . | . . Installed . | . . Triggered . | . . Machines | -11 -10 ---------- Run | Scr Mat Machines Disabled . | . . Max in Single Turn . | . . Machines Sabotaged . | . . Garrisons Compromised . | . . Overloaded Fab Kills . | . . Fab Network Shutdowns . | . . Hacking | -11 -10 --------- Run | Scr Mat Machines Accessed 2 | . 2 Terminals 2 | . 2 Fabricators . | . . Repair Stations . | . . Recycling Units . | . . Scanalyzers . | . . Garrison Access . | . . Total Hacks 4 | . 4 Successful 4 | . 4 Failed . | . . Catastrophic . | . . Database Lockouts . | . . Manual 3 | . 3 Terminals 4 | . 4 Fabricators . | . . Repair Stations . | . . Recycling Units . | . . Scanalyzers . | . . Garrison Access . | . . Terminal Hacks 1 | . 1 Registered Components 1 | . 1 Fabricator Hacks . | . . Repair Station Hacks . | . . Recycling Unit Hacks . | . . Scanalyzer . | . . Garrison Access Hacks . | . . Unauthorized Hacks 6 | . 6 Terminals 3 | . 3 Track 1 | . 1 Botnet 2 | . 2 Fabricators . | . . Repair Stations . | . . Recycling Units . | . . Scanalyzers . | . . Garrison Access . | . . Data Cores Recovered . | . . Used . | . . Hacking Detections 2 | . 2 Full Trace Events . | . . Feedback Events . | . . Feedback Blocked . | . . Robot Schematics Acquired . | . . Robots Built . | . . Matter . | . . Time . | . . Total Robot Build Rating . | . . Part Schematics Acquired . | . . Parts Built . | . . Matter . | . . Time . | . . Total Part Build Rating . | . . Parts Repaired . | . . Time . | . . Parts Recycled . | . . Recycled Matter . | . . Retrieved Matter . | . . Retrieved Components . | . . Parts Scanalyzed . | . . Part Schematics Acquired . | . . Parts Damaged . | . . Bothacking | -11 -10 ------------ Run | Scr Mat Used RIF Installer . | . . Robots Hacked . | . . Non-combat . | . . Combat . | . . Robot Hacks Applied . | . . Relay Couplers Released . | . . Robots Rewired . | . . Allies Hacked . | . . Hacks Repelled . | . . Allies | -11 -10 -------- Run | Scr Mat Total Allies . | . . Largest Group . | . . Highest-Rated Group . | . . Highest-Rated Ally . | . . Total Orders . | . . Ally Attacks . | . . Total Damage . | . . Kills . | . . Allies Corrupted . | . . Allies Melted . | . . Intel | -11 -10 ------- Run | Scr Mat Robot Analysis Total . | . . Derelict Logs Recovered . | . . Drone Launches . | . . Drone Recoveries . | . . Exploration | -11 -10 ------------- Run | Scr Mat Turns Passed 1025 | 30 995 Spaces Moved 676 | 44 632 Core 107 | 44 63 Treads 108 | . 108 Legs 215 | . 215 Wheels . | . . Hover 246 | . 246 Flight . | . . Fastest Speed 50 | 50 50 Average Speed 95 | 50 98 Slowest Speed 180 | 50 180 Overloaded Moves . | . . Propulsion Burnouts . | . . Robots Hopped . | . . Cave-ins Triggered . | . . Exploration Rate (%) 36 | 3 70 Regions Visited 1 Branch Regions . Pre-discovered Areas . | . . Known Exits Taken . | . . Unknown Exits Taken 1 | 1 . Scrap Searched . | . . Spaces Dug . | . . Terrain Destroyed 2 | . 2 Melee . | . . Projectile 2 | . 2 AOE . | . . Actions | -11 -10 --------- Run | Scr Mat Total 906 | 51 855 Wait 36 | . 36 Move 675 | 43 632 Hop . | . . Pick Up 37 | 6 31 Fast Attach 9 | . 9 Attach 13 | 2 11 Detach 2 | . 2 Swap 19 | . 19 Drop 27 | . 27 Fire 88 | . 88 Melee . | . . Ram . | . . Kick . | . . Crush . | . . Escape Stasis . | . . Rewire . | . . Trap . | . . Miscellaneous . | . . Route ------- -11/Scrapyard -10/Materials (discovered 3 exits: [*Mat x3]) History --------- Turn | Location | Event 10 | -11/Scrapyard | Discovered new exit (range 15) 31 | -11/Scrapyard | Entered Materials 335 | -10/Materials | Build established: Mutant 443 | -10/Materials | Discovered new exit (range 15) 492 | -10/Materials | Discovered new exit (range 16) 719 | -10/Materials | Core integrity fell below 50% 756 | -10/Materials | Lost 4 parts (1p2n1w) 908 | -10/Materials | Discovered new exit (range 13) 992 | -10/Materials | Core integrity fell below 20% 1026 | -10/Materials | Destroyed by S-10 Pest with Light Assault Rifle Last Messages --------------- 00885_ Dropped Med. Storage Unit. 00887_ Acquired Imp. Ion Engine. 00890_ Acquired Imp. Light Cannon. 00908_ EXIT=FOUND 00911_ Assault Rifle destroyed. 00932_ G-47 Trooper destroyed. 00935_ G-34 Mercenary destroyed. 00938_ Acquired 39 matter. 00942_ Acquired 34 matter. 00975_ W-16 Scout sends out distress signal. 00983_ S-10 Pest destroyed. 00989_ Acquired 8 matter. 00990_ W-16 Scout sends out distress signal. 01001_ S-10 Pest destroyed. 01006_ Acquired 5 matter. 01008_ S-10 Pest knocked back. 01008_ S-10 Pest destroyed. 01011_ Destroyed Lgt. Ion Engine. 01011_ S-10 Pest knocked back. 01014_ S-10 Pest destroyed. Map ----- +----------------------------------------------------+ | | | | | | | | | | | | | | | | | | | | | | | | | | | | | | | | | ??????????????????????????????????????????????? | | ??????????????????????????????????????????????? | | ??????????####??????????#####?????????????????? | | ??????????? ;######### #?????????????????? | | ????????????? #?????????????????? | | ??????????????? #?????????????????? | | ???????????????##% w #?????????????????? | | ?????????#######; #??????????????????? | | ?????????? /s% *== #??????????????????? | | ????????????????# == =@ #???#####??????????? | | ????????????????# ###### #???? ?#####???? | | ????????????????# #????????????"""" ?# #???? | | ????????????????# #??????????? """" # < #???? | | ????????????????# #?????????# """" # % #???? | | ????????????????# #?????????+ + #???? | | ????????????????# #?????????# ""# #???? | | ????????????????# #?????????# Y"# #???? | | ????????????????# #?????????# "?# #?### | | ????????????????# #?????????# ?# #? | | ????????????????# #?????????#######??# # | | ????????????????# #??????????????????# # | | ????????????????# #??????????????????# + | | ????????????????# #?????????########## # | | ????????????????# #?????????# #= #?? | | ????????????????# =#?????????# #%* #???? | | ????????????????#==#?????????# """ #! #???? | | ????????????????## #?????????# """"" # #???? | | ?????????????????#[#?????????# """"" # #???? | | ?????????????????# #########?# """"" + #???? | | ?????????????????# ## **!!#?# """ # ##### | | ?????????????????# ## *!!#?#* % # | | ?????????????????# ## ! #?# # | | ???????????####### ## ############ | | ??????# | +----------------------------------------------------+ Best States ------------- Heat Dissipation 35 Energy Generation 12 Energy Capacity 265 Matter Stores 300 Matter Capacity 300 Sight Range 16 Terrain Scan Density 10 Armor Coverage 150 Utility Shielding 33 Weapon Shielding 33 Evasion (%) 53 Recoil Reduction 2 Item Schematics ----------------- None Robot Schematics ------------------ None Fabricated ------------ Nothing Alien Tech Used ----------------- None Achievements -------------- None Challenges ------------ None Game ------ Seed ArmorFlyingBoomstick Manual? 0 Play Time 00:15:48 Cumulative 85.0 hours Start 2019.11.01 @ 15:34:41 End 2019.11.01 @ 15:49:26 Sessions 1 Manual Loads 0 Difficulty Rogue Special Mode None Game No. 132 Rogue 132 Adventurer 0 Explorer 0 Win Type - Total 0 Types 0/0/0/0/0/0/0 Lore% 30 Gallery% 43 Achievement% 31 Wizard Run 0 Options --------- ASCII 0 Keyboard 0 Movement Mouse Keybinds 0 Fullscreen 1 Font 18/SmallcapsGlow Map View 76x50 Tactical HUD 1 Map Filters NONE Filters NONE Steam 1 RUN: 99a67de0-cede-43d5-9e23-260de57b6bb8